{"text_format":"3","workbook":"xlsx","n_sheets":2,"sheets":["劳务清单表、分析表","材料清单表"],"not_rendered":{"images":2,"external_links":1,"defined_names":5},"read":"whole","date_system":"1900"}

{"sheet":"劳务清单表、分析表","index":0,"n_rows":86,"n_cols":11,"rows_kept":86,"merged":[[0,0,0,10],[1,0,1,10],[2,0,3,0],[2,1,3,1],[2,2,3,2],[2,3,3,3],[2,4,3,4],[2,5,3,5],[2,6,3,6],[2,7,2,9],[2,10,3,10],[81,1,81,4],[82,0,82,10]]}
["劳务工程量清单报价表"]
["项目名称：隆昌市2023年高标准农田建设项目设计施工总承包-白鹤林村劳务单位采购项目"]
["序号","工程或费用名称","工作内容","单位","工程数量","单价\n(不含税）","合价（元）","人工费（含税）",null,null,"备注"]
[{"$nulls":7},"最高控制\n单价（元）","投标单价（元）","投标合价(元)"]
[1,"表土剥离","1.配合机械表土剥离\n2.测量放样、规划剥离区域\n3.人工配合转移机械\n4.现场安全防护及管理","m3",{"v":409773,"d":"409773.00"},{"v":0.3,"d":"0.30"},{"v":122931.9,"d":"122931.90"},0.31]
[2,"表土回填","1.配合机械整平土方\n2.测量放样\n3.表土回填、人工配合机械夯实\n4.现场安全防护及管理","m3",{"v":409773,"d":"409773.00"},{"v":0.3,"d":"0.30"},{"v":122931.9,"d":"122931.90"},0.31]
[3,"土地翻耕","[项目特征]\n1.土石类别:不区分土石成分，综合考虑\n2.判断标准:人工开挖槽凡图示槽底宽（不含加宽工作面）在5m以内，且槽底长大于底宽三倍以上者，执行本清单项；机械开挖槽凡图示槽底宽（不含加宽工作面）在7m以内，且槽底长大于底宽三倍以上者，执行本清单项；除上述规定外执行平基项目。\n3.开挖深度:根据原始地形图、平基施工图、地质勘察报告、基础设计施工图等综合考虑\n4.开挖方式:机械开挖，人工捡底\n6.弃渣运距:综合考虑\n[工程内容]\n1.土方开挖（调型）\n2.土石方开挖\n3.处理渗水、积水\n4.清理\n5.场内运输\n6.安全防护、警卫\n7.平整、夯实；修整底、边","公顷",169.48,{"v":350,"d":"350.00"},{"v":59318,"d":"59318.00"},{"v":360.5,"d":"360.50"}]
[4,"土方开挖（调型）","[项目特征]\n1.土石类别:不区分土石成分，综合考虑\n2.判断标准:人工开挖槽凡图示槽底宽（不含加宽工作面）在5m以内，且槽底长大于底宽三倍以上者，执行本清单项；机械开挖槽凡图示槽底宽（不含加宽工作面）在7m以内，且槽底长大于底宽三倍以上者，执行本清单项；除上述规定外执行平基项目。\n3.开挖深度:根据原始地形图、平基施工图、地质勘察报告、基础设计施工图等综合考虑\n4.开挖方式:机械开挖，人工捡底\n6.弃渣运距:综合考虑\n[工程内容]\n1.土方开挖（调型）\n2.土石方开挖\n3.处理渗水、积水\n4.清理\n5.场内运输\n6.安全防护、警卫\n7.平整、夯实；修整底、边","m3",{"v":260377,"d":"260377.00"},0.65,169245.05,0.67]
[5,"土方回填（调型）","[项目特征]\n1.土石类别:不区分土石成分，综合考虑\n2.判断标准:人工开挖槽凡图示槽底宽（不含加宽工作面）在5m以内，且槽底长大于底宽三倍以上者，执行本清单项；机械开挖槽凡图示槽底宽（不含加宽工作面）在7m以内，且槽底长大于底宽三倍以上者，执行本清单项；除上述规定外执行平基项目。\n3.开挖深度:根据原始地形图、平基施工图、地质勘察报告、基础设计施工图等综合考虑\n4.开挖方式:机械开挖，人工捡底\n6.弃渣运距:综合考虑\n[工程内容]\n1.土方回填（调型）\n2.土石方回填\n3.处理渗水、积水\n4.清理\n5.场内运输\n6.安全防护、警卫\n7.平整、夯实；修整底、边","m3",{"v":260377,"d":"260377.00"},{"v":0.3,"d":"0.30"},{"v":78113.1,"d":"78113.10"},0.31]
[6,"土方开挖（格田调型）","[项目特征]\n1.土石类别:不区分土石成分，综合考虑\n2.判断标准:人工开挖槽凡图示槽底宽（不含加宽工作面）在5m以内，且槽底长大于底宽三倍以上者，执行本清单项；机械开挖槽凡图示槽底宽（不含加宽工作面）在7m以内，且槽底长大于底宽三倍以上者，执行本清单项；除上述规定外执行平基项目。\n3.开挖深度:根据原始地形图、平基施工图、地质勘察报告、基础设计施工图等综合考虑\n4.开挖方式:机械开挖，人工捡底\n6.弃渣运距:综合考虑\n[工程内容]\n1.土方开挖（格田调型）\n2.土石方开挖\n3.处理渗水、积水\n4.清理\n5.场内运输\n6.安全防护、警卫\n7.平整、夯实；修整底、边","m3",{"v":323661.8,"d":"323661.80"},0.65,210380.17,0.67]
[7,"土方回填（格田调型）","[项目特征]\n1.土石类别:不区分土石成分，综合考虑\n2.判断标准:人工开挖槽凡图示槽底宽（不含加宽工作面）在5m以内，且槽底长大于底宽三倍以上者，执行本清单项；机械开挖槽凡图示槽底宽（不含加宽工作面）在7m以内，且槽底长大于底宽三倍以上者，执行本清单项；除上述规定外执行平基项目。\n3.开挖深度:根据原始地形图、平基施工图、地质勘察报告、基础设计施工图等综合考虑\n4.开挖方式:机械开挖，人工捡底\n6.弃渣运距:综合考虑\n[工程内容]\n1.土方回填（格田调型）\n2.土石方回填\n3.处理渗水、积水\n4.清理\n5.场内运输\n6.安全防护、警卫\n7.平整、夯实；修整底、边","m3",{"v":323661.8,"d":"323661.80"},{"v":0.3,"d":"0.30"},97098.54,0.31]
[8,"背沟清理","[项目特征]\n1.土石类别:不区分土石成分，综合考虑\n2.判断标准:人工开挖槽凡图示槽底宽（不含加宽工作面）在5m以内，且槽底长大于底宽三倍以上者，执行本清单项；机械开挖槽凡图示槽底宽（不含加宽工作面）在7m以内，且槽底长大于底宽三倍以上者，执行本清单项；除上述规定外执行平基项目。\n3.开挖深度:根据原始地形图、平基施工图、地质勘察报告、基础设计施工图等综合考虑\n4.开挖方式:机械开挖，人工捡底\n6.弃渣运距:综合考虑\n[工程内容]\n1.土方回填（格田调型）\n2.土石方回填\n3.处理渗水、积水\n4.清理\n5.场内运输\n6.安全防护、警卫\n7.平整、夯实；修整底、边","m3",{"v":571.6,"d":"571.60"},3.25,{"v":1857.7,"d":"1857.70"},3.35]
[8,"土埂修筑","[项目特征]\n1.土石类别:不区分土石成分，综合考虑\n2.判断标准:人工开挖槽凡图示槽底宽（不含加宽工作面）在5m以内，且槽底长大于底宽三倍以上者，执行本清单项；机械开挖槽凡图示槽底宽（不含加宽工作面）在7m以内，且槽底长大于底宽三倍以上者，执行本清单项；除上述规定外执行平基项目。\n3.开挖深度:根据原始地形图、平基施工图、地质勘察报告、基础设计施工图等综合考虑\n4.开挖方式:机械开挖，人工捡底\n6.弃渣运距:综合考虑\n[工程内容]\n1.土方回填（格田调型）\n2.土石方回填\n3.处理渗水、积水\n4.清理\n5.场内运输\n6.安全防护、警卫\n7.平整、夯实；修整底、边","m3",7458.83,{"v":8,"d":"8.00"},59670.64,8.24]
[8,"筑田埂","[项目特征]\n1.土石类别:不区分土石成分，综合考虑\n2.判断标准:人工开挖槽凡图示槽底宽（不含加宽工作面）在5m以内，且槽底长大于底宽三倍以上者，执行本清单项；机械开挖槽凡图示槽底宽（不含加宽工作面）在7m以内，且槽底长大于底宽三倍以上者，执行本清单项；除上述规定外执行平基项目。\n3.开挖深度:根据原始地形图、平基施工图、地质勘察报告、基础设计施工图等综合考虑\n4.开挖方式:机械开挖，人工捡底\n6.弃渣运距:综合考虑\n[工程内容]\n1.土方回填（格田调型）\n2.土石方回填\n3.处理渗水、积水\n4.清理\n5.场内运输\n6.安全防护、警卫\n7.平整、夯实；修整底、边","m3",38388.11,{"v":0.5,"d":"0.50"},19194.06,0.52]
[9,"拆除田坎","1、拆除、装车、人工配合转用","m3",15228.92,1.25,19036.15,1.29]
[10,"M10砂浆抹面","1.现场清理\n2.基层清扫、洗刷、配、拌、运砂浆、抹平、养护\n3.清理现场","m2",21349.77,{"v":12,"d":"12.00"},256197.24,12.36]
[11,"土方回填","[项目特征]\n1.土石类别:不区分土石成分，综合考虑\n2.判断标准:人工开挖槽凡图示槽底宽（不含加宽工作面）在5m以内，且槽底长大于底宽三倍以上者，执行本清单项；机械开挖槽凡图示槽底宽（不含加宽工作面）在7m以内，且槽底长大于底宽三倍以上者，执行本清单项；除上述规定外执行平基项目。\n3.开挖深度:根据原始地形图、平基施工图、地质勘察报告、基础设计施工图等综合考虑\n4.开挖方式:机械开挖，人工捡底\n6.弃渣运距:综合考虑\n[工程内容]\n1.土方回填（土方回填）\n2.土石方回填\n3.处理渗水、积水\n4.清理\n5.场内运输\n6.安全防护、警卫\n7.平整、夯实；修整底、边","m3",33076.94,{"v":0.3,"d":"0.30"},9923.08,0.31]
[12,"土方开挖","[项目特征]\n1.土石类别:不区分土石成分，综合考虑\n2.判断标准:人工开挖槽凡图示槽底宽（不含加宽工作面）在5m以内，且槽底长大于底宽三倍以上者，执行本清单项；机械开挖槽凡图示槽底宽（不含加宽工作面）在7m以内，且槽底长大于底宽三倍以上者，执行本清单项；除上述规定外执行平基项目。\n3.开挖深度:根据原始地形图、平基施工图、地质勘察报告、基础设计施工图等综合考虑\n4.开挖方式:机械开挖，人工捡底\n6.弃渣运距:综合考虑\n[工程内容]\n1.土方开挖（土方开挖）\n2.土石方开挖\n3.处理渗水、积水\n4.清理\n5.场内运输\n6.安全防护、警卫\n7.平整、夯实；修整底、边","m3",24094.56,{"v":0.3,"d":"0.30"},7228.37,0.31]
[13,"路床碾压","1.机械整平土方，人工找平修补\n2.测量放样\n3.机械碾压，人工找平\n4.回填料含水率检测等相关检测\n5.现场安全防护及管理","m2",32174.55,{"v":0.5,"d":"0.50"},16087.28,0.52]
[14,"15cm厚泥结石路面","1、测量放样、粗调纵坡、布置料堆、摊铺碎石、稳压、撒铺粘土、碾压\n2、二转、养护、成品保护","m2",{"v":27371.7,"d":"27371.70"},{"v":3.5,"d":"3.50"},95800.95,3.61]
[15,"沟槽土方开挖","[项目特征]\n1.土石类别:不区分土石成分，综合考虑\n2.判断标准:人工开挖槽凡图示槽底宽（不含加宽工作面）在5m以内，且槽底长大于底宽三倍以上者，执行本清单项；机械开挖槽凡图示槽底宽（不含加宽工作面）在7m以内，且槽底长大于底宽三倍以上者，执行本清单项；除上述规定外执行平基项目。\n3.开挖深度:根据原始地形图、平基施工图、地质勘察报告、基础设计施工图等综合考虑\n4.开挖方式:机械开挖，人工捡底\n6.弃渣运距:综合考虑\n[工程内容]\n1.挖沟槽土石方\n2.沟槽内土石方回填\n3.处理渗水、积水\n4.清理\n5.场内运输\n6.安全防护、警卫\n7.围护、支撑\n8.平整、夯实；修整底、边","m3",{"v":14690.1,"d":"14690.10"},2.25,33052.73,2.32]
[16,"PVC-U排水管","1、材料搬运；\n2、材料准备：将管道或管件置于平坦位置，放于对接机上，留足10-20mm的切削余量。\n3、夹紧：根据所焊制的管材、管件选择合适的卡瓦夹具，夹紧管材，为切削做好准备。\n4、切削：切削所焊管段、管件端面杂质和氧化层，保证两对接端面平整、光洁、无杂质。\n5、对中：两焊管段端面要完全对中，错边越小越好，错边不能超过壁厚的10%。否则，将影响对接质量。\n6、加热：对接温度一般在210-230℃之间为宜，加热板加热时间冬夏有别，以两端面熔融长度为1-2mm为佳。\n7、切换：将加热板拿开，迅速让两热融端面相粘并加压，为保证熔融对接质量，切换周期越短越好。\n8、熔融对接：是焊接的关键，对接过程应始终处于熔融压力下进行，卷边宽度以2-4mm为宜。\n9、冷却：保持对接压力不变，让接口缓慢冷却，冷却时间长短以手摸卷边生硬，感觉不到热为准。\n10、对接完成：冷却好后松开卡瓦，移开对接机，重新准备下一接口连接。","m",{"v":2560,"d":"2560.00"},{"v":10,"d":"10.00"},{"v":25600,"d":"25600.00"},{"v":10.3,"d":"10.30"}]
[16,"φ32PE管（1.0MPa）","1、材料搬运；\n2、材料准备：将管道或管件置于平坦位置，放于对接机上，留足10-20mm的切削余量。\n3、夹紧：根据所焊制的管材、管件选择合适的卡瓦夹具，夹紧管材，为切削做好准备。\n4、切削：切削所焊管段、管件端面杂质和氧化层，保证两对接端面平整、光洁、无杂质。\n5、对中：两焊管段端面要完全对中，错边越小越好，错边不能超过壁厚的10%。否则，将影响对接质量。\n6、加热：对接温度一般在210-230℃之间为宜，加热板加热时间冬夏有别，以两端面熔融长度为1-2mm为佳。\n7、切换：将加热板拿开，迅速让两热融端面相粘并加压，为保证熔融对接质量，切换周期越短越好。\n8、熔融对接：是焊接的关键，对接过程应始终处于熔融压力下进行，卷边宽度以2-4mm为宜。\n9、冷却：保持对接压力不变，让接口缓慢冷却，冷却时间长短以手摸卷边生硬，感觉不到热为准。\n10、对接完成：冷却好后松开卡瓦，移开对接机，重新准备下一接口连接。","m",{"v":189,"d":"189.00"},{"v":3,"d":"3.00"},{"v":567,"d":"567.00"},3.09]
[17,"DN75（1.0MPa）PE100管道安装","1、材料搬运；\n2、材料准备：将管道或管件置于平坦位置，放于对接机上，留足10-20mm的切削余量。\n3、夹紧：根据所焊制的管材、管件选择合适的卡瓦夹具，夹紧管材，为切削做好准备。\n4、切削：切削所焊管段、管件端面杂质和氧化层，保证两对接端面平整、光洁、无杂质。\n5、对中：两焊管段端面要完全对中，错边越小越好，错边不能超过壁厚的10%。否则，将影响对接质量。\n6、加热：对接温度一般在210-230℃之间为宜，加热板加热时间冬夏有别，以两端面熔融长度为1-2mm为佳。\n7、切换：将加热板拿开，迅速让两热融端面相粘并加压，为保证熔融对接质量，切换周期越短越好。\n8、熔融对接：是焊接的关键，对接过程应始终处于熔融压力下进行，卷边宽度以2-4mm为宜。\n9、冷却：保持对接压力不变，让接口缓慢冷却，冷却时间长短以手摸卷边生硬，感觉不到热为准。\n10、对接完成：冷却好后松开卡瓦，移开对接机，重新准备下一接口连接。","m",{"v":4866,"d":"4866.00"},{"v":10,"d":"10.00"},{"v":48660,"d":"48660.00"},{"v":10.3,"d":"10.30"}]
[18,"DN90（1.0MPa）PE100管道安装","1、材料搬运；\n2、材料准备：将管道或管件置于平坦位置，放于对接机上，留足10-20mm的切削余量。\n3、夹紧：根据所焊制的管材、管件选择合适的卡瓦夹具，夹紧管材，为切削做好准备。\n4、切削：切削所焊管段、管件端面杂质和氧化层，保证两对接端面平整、光洁、无杂质。\n5、对中：两焊管段端面要完全对中，错边越小越好，错边不能超过壁厚的10%。否则，将影响对接质量。\n6、加热：对接温度一般在210-230℃之间为宜，加热板加热时间冬夏有别，以两端面熔融长度为1-2mm为佳。\n7、切换：将加热板拿开，迅速让两热融端面相粘并加压，为保证熔融对接质量，切换周期越短越好。\n8、熔融对接：是焊接的关键，对接过程应始终处于熔融压力下进行，卷边宽度以2-4mm为宜。\n9、冷却：保持对接压力不变，让接口缓慢冷却，冷却时间长短以手摸卷边生硬，感觉不到热为准。\n10、对接完成：冷却好后松开卡瓦，移开对接机，重新准备下一接口连接。","m",{"v":4254,"d":"4254.00"},{"v":10,"d":"10.00"},{"v":42540,"d":"42540.00"},{"v":10.3,"d":"10.30"}]
[19,"DN160（1.0MPa）PE100管道安装","1、材料搬运；\n2、材料准备：将管道或管件置于平坦位置，放于对接机上，留足10-20mm的切削余量。\n3、夹紧：根据所焊制的管材、管件选择合适的卡瓦夹具，夹紧管材，为切削做好准备。\n4、切削：切削所焊管段、管件端面杂质和氧化层，保证两对接端面平整、光洁、无杂质。\n5、对中：两焊管段端面要完全对中，错边越小越好，错边不能超过壁厚的10%。否则，将影响对接质量。\n6、加热：对接温度一般在210-230℃之间为宜，加热板加热时间冬夏有别，以两端面熔融长度为1-2mm为佳。\n7、切换：将加热板拿开，迅速让两热融端面相粘并加压，为保证熔融对接质量，切换周期越短越好。\n8、熔融对接：是焊接的关键，对接过程应始终处于熔融压力下进行，卷边宽度以2-4mm为宜。\n9、冷却：保持对接压力不变，让接口缓慢冷却，冷却时间长短以手摸卷边生硬，感觉不到热为准。\n10、对接完成：冷却好后松开卡瓦，移开对接机，重新准备下一接口连接。","m",{"v":1983,"d":"1983.00"},{"v":45,"d":"45.00"},{"v":89235,"d":"89235.00"},46.35]
[19,"DN200（1.0MPa）PE100管道安装","1、材料搬运；\n2、材料准备：将管道或管件置于平坦位置，放于对接机上，留足10-20mm的切削余量。\n3、夹紧：根据所焊制的管材、管件选择合适的卡瓦夹具，夹紧管材，为切削做好准备。\n4、切削：切削所焊管段、管件端面杂质和氧化层，保证两对接端面平整、光洁、无杂质。\n5、对中：两焊管段端面要完全对中，错边越小越好，错边不能超过壁厚的10%。否则，将影响对接质量。\n6、加热：对接温度一般在210-230℃之间为宜，加热板加热时间冬夏有别，以两端面熔融长度为1-2mm为佳。\n7、切换：将加热板拿开，迅速让两热融端面相粘并加压，为保证熔融对接质量，切换周期越短越好。\n8、熔融对接：是焊接的关键，对接过程应始终处于熔融压力下进行，卷边宽度以2-4mm为宜。\n9、冷却：保持对接压力不变，让接口缓慢冷却，冷却时间长短以手摸卷边生硬，感觉不到热为准。\n10、对接完成：冷却好后松开卡瓦，移开对接机，重新准备下一接口连接。","m",{"v":5507,"d":"5507.00"},{"v":45,"d":"45.00"},{"v":247815,"d":"247815.00"},46.35]
[20,"模板","1.模板制作、安装、拆除、平面定位、高程控制\n2.涂刷隔离剂、支撑、拆模、清洗、回收","m2",{"v":6206.806,"d":"6206.81"},{"v":45,"d":"45.00"},279306.27,46.35]
[21,"M7.5浆砌砖","1、M7.5砌筑工作；\n2、材料搬运、拌、运砂浆；\n3、搭、拆脚手架；\n4、砌筑、勾缝、养护；\n5、沉降缝胶泥制作与填抹；\n6、排水孔下的胶泥铺设与孔口填石；\n7、安全措施。","m3",3178.76,288.75,917866.95,297.41]
[22,"土方回填夯实","[项目特征]\n1.土石类别:不区分土石成分，综合考虑\n2.判断标准:人工开挖槽凡图示槽底宽（不含加宽工作面）在5m以内，且槽底长大于底宽三倍以上者，执行本清单项；机械开挖槽凡图示槽底宽（不含加宽工作面）在7m以内，且槽底长大于底宽三倍以上者，执行本清单项；除上述规定外执行平基项目。\n3.开挖深度:根据原始地形图、平基施工图、地质勘察报告、基础设计施工图等综合考虑\n4.开挖方式:机械开挖，人工捡底\n6.弃渣运距:综合考虑\n[工程内容]\n1.土方回填（土方回填夯实）\n2.土石方回填\n3.处理渗水、积水\n4.清理\n5.场内运输\n6.安全防护、警卫\n7.平整、夯实；修整底、边","m3",5724.91,{"v":0.3,"d":"0.30"},1717.47,0.31]
[23,"20cm厚C20砼底板","1、模板制作、安装、拆除；\n2、混凝土运输、浇筑（砼浇注前、后的系列工作，包括砼施工的施工前准备，编制砼用量计划、清洁、修复、浇注、泵送配合、根据进度留设施工缝、施工缝处理剔打、养护、砼等垃圾处理、砼浇注质量问题处理等除砼搅拌外的砼施工的全部工序内容）；\n3、安全设施搭拆、个人安全措施、自备辅材、自备所有施工机械设备及工器具；\n4.养护；\n5.现场安全防护及管理。","m3",2319.92,{"v":65,"d":"65.00"},{"v":150794.8,"d":"150794.80"},66.95]
[24,"泄水管Φ50PVC","1、材料搬运；\n2、材料准备：将管道或管件置于平坦位置，放于对接机上，留足10-20mm的切削余量。\n3、夹紧：根据所焊制的管材、管件选择合适的卡瓦夹具，夹紧管材，为切削做好准备。\n4、切削：切削所焊管段、管件端面杂质和氧化层，保证两对接端面平整、光洁、无杂质。\n5、对中：两焊管段端面要完全对中，错边越小越好，错边不能超过壁厚的10%。否则，将影响对接质量。\n6、加热：对接温度一般在210-230℃之间为宜，加热板加热时间冬夏有别，以两端面熔融长度为1-2mm为佳。\n7、切换：将加热板拿开，迅速让两热融端面相粘并加压，为保证熔融对接质量，切换周期越短越好。\n8、熔融对接：是焊接的关键，对接过程应始终处于熔融压力下进行，卷边宽度以2-4mm为宜。\n9、冷却：保持对接压力不变，让接口缓慢冷却，冷却时间长短以手摸卷边生硬，感觉不到热为准。\n10、对接完成：冷却好后松开卡瓦，移开对接机，重新准备下一接口连接。","m",{"v":3902.5,"d":"3902.50"},{"v":5,"d":"5.00"},{"v":19512.5,"d":"19512.50"},5.15]
[25,"泥结碎石路面","1、测量放样、粗调纵坡、布置料堆、摊铺碎石、稳压、撒铺粘土、碾压\n2、二转、养护、成品保护","m2",{"v":750,"d":"750.00"},{"v":3.5,"d":"3.50"},{"v":2625,"d":"2625.00"},3.61]
[26,"预制C30钢筋砼","1、模板制作、安装、拆除、安装；\n2、混凝土运输、浇筑（砼浇注前、后的系列工作，包括砼施工的施工前准备，编制砼用量计划、清洁、修复、浇注、泵送配合、根据进度留设施工缝、施工缝处理剔打、养护、砼等垃圾处理、砼浇注质量问题处理等除砼搅拌外的砼施工的全部工序内容）；\n3、安全设施搭拆、个人安全措施、自备辅材、自备所有施工机械设备及工器具；\n4.养护；\n5.现场安全防护及管理。","m3",86.49,{"v":120,"d":"120.00"},{"v":10378.8,"d":"10378.80"},{"v":123.6,"d":"123.60"}]
[27,"土质边沟","[项目特征]\n1.土石类别:不区分土石成分，综合考虑\n2.判断标准:人工开挖槽凡图示槽底宽（不含加宽工作面）在5m以内，且槽底长大于底宽三倍以上者，执行本清单项；机械开挖槽凡图示槽底宽（不含加宽工作面）在7m以内，且槽底长大于底宽三倍以上者，执行本清单项；除上述规定外执行平基项目。\n3.开挖深度:根据原始地形图、平基施工图、地质勘察报告、基础设计施工图等综合考虑\n4.开挖方式:机械开挖，人工捡底\n6.弃渣运距:综合考虑\n[工程内容]\n1.挖沟槽土石方\n2.沟槽内土石方回填\n3.处理渗水、积水\n4.清理\n5.场内运输\n6.安全防护、警卫\n7.围护、支撑\n8.平整、夯实；修整底、边","m3",{"v":1477.8,"d":"1477.80"},{"v":7,"d":"7.00"},{"v":10344.6,"d":"10344.60"},7.21]
[28,"背沟清理","1.土（石）方开挖及运输距离根据施工队伍综合考虑\n2.测量放样\n3.涵洞及桥梁基础开挖后的±10cm捡底\n4.路面土基层开挖后的±10cm捡底\n5.运输道路清理\n6.排地表水、土方开挖、支撑、将土置于槽、坑边1m以外5m以内自然堆放、基底钎探及开挖未达到设计要求的返工等工作内容。\n7.现场安全防护及管理\n8.临时交通指挥及安全措施","m3",{"v":571.6,"d":"571.60"},3.25,{"v":1857.7,"d":"1857.70"},3.35]
[29,"土路肩","1、清除杂物；\n2、挖掘路肩；\n3、打夯压实；\n4、补充填料。","m3",1440.86,{"v":3,"d":"3.00"},4322.58,3.09]
[30,"BV-2x2.5绝缘电线","[项目特征]\n1.设备房机电安装，材料甲方提供\n[工程内容]\n1.开槽、安装、布线、成品保护","m",{"v":400,"d":"400.00"},{"v":0.5,"d":"0.50"},{"v":200,"d":"200.00"},0.52]
[31,"PVC16","[项目特征]\n1.设备房机电安装，材料甲方提供\n[工程内容]\n1.开槽、安装、布线、成品保护","m",{"v":400,"d":"400.00"},{"v":3,"d":"3.00"},{"v":1200,"d":"1200.00"},3.09]
[32,"C20砼护坡","1、模板制作、安装、拆除；\n2、混凝土运输、浇筑（砼浇注前、后的系列工作，包括砼施工的施工前准备，编制砼用量计划、清洁、修复、浇注、泵送配合、根据进度留设施工缝、施工缝处理剔打、养护、砼等垃圾处理、砼浇注质量问题处理等除砼搅拌外的砼施工的全部工序内容）；\n3、安全设施搭拆、个人安全措施、自备辅材、自备所有施工机械设备及工器具；\n4.养护；\n5.现场安全防护及管理。","m3",474.38,{"v":218,"d":"218.00"},103414.84,224.54]
[33,"不锈钢防护拦","1.钢管柱：切割、焊接、钻孔、打桩机打入钢管柱，挖洞，浇筑柱脚混凝土；\n2.立柱：打桩机打入柱；\n3.护栏：安装撑架、固定螺栓及连接螺栓\n4.清理现场","m",{"v":375,"d":"375.00"},18.45,6918.75,{"v":19,"d":"19.00"}]
[34,"土地翻耕","1、土地平整；\n2、人工清理区域枯树、树根、杂草、垃圾等有碍物；\n3、测量区域；\n4、零星排水；\n5、区域安全。","公顷",169.48,{"v":350,"d":"350.00"},{"v":59318,"d":"59318.00"},{"v":360.5,"d":"360.50"}]
[35,"DN500钢筋砼管","1.基础开挖：1）挂线；2）挖土；3）回填或将挖出的土筑成挡水埝；4）将沟槽断面修理到设计要求；5）清理现场等。\n2.基础砌筑：石质：1）挂线；2）打眼、爆破、人工或机械清理；3）人工将沟槽断面修理到设计要求\n3.涵身：1）选、修、洗石料；2）搭、拆脚手架、踏步或井字架；3）配、拌、运砂浆；4）砌筑；5）勾缝；6）养护。\n4.涵管：1）构件修整；2）铺垫油毛毡支座；3）埋设及拆除地笼；4）起重机纵移过墩；5）构件吊装。\n5.钢筋：1）搭、拆脚手架及轻型上下架、安全爬梯；2）定型钢模安装、拆除、修理、涂脱模剂、堆放；3）液压爬模拼拆及安装、提升、拆除、修理、涂脱模剂、堆放；4）钢筋除锈、制作、电焊、绑扎及骨架吊装入模；6）混凝土浇筑、捣固及养护。","m",{"v":100,"d":"100.00"},{"v":40,"d":"40.00"},{"v":4000,"d":"4000.00"},{"v":41.2,"d":"41.20"}]
[36,"20cm厚C30砼路面","1.模板制作、安装、拆除、平面定位、高程控制\n2.混凝浇筑、振捣、养护\n3.类型：混凝土路面\n4.拉毛、压痕或刻防滑槽\n5.伸缩缝\n6.锯缝、嵌缝\n7.路面养护\n8.现场安全防护及管理","m2",{"v":150,"d":"150.00"},10.45,{"v":1567.5,"d":"1567.50"},10.76]
[37,"1.0MPa DN200 闸阀","[项目特征]\n1.管道安装，材料甲方提供\n[工程内容]\n1、材料搬运；\n2、材料准备：将管道或管件置于平坦位置，放于对接机上，留足10-20mm的切削余量。\n3、夹紧：根据所焊制的管材、管件选择合适的卡瓦夹具，夹紧管材，为切削做好准备。\n4、切削：切削所焊管段、管件端面杂质和氧化层，保证两对接端面平整、光洁、无杂质。\n5、对中：两焊管段端面要完全对中，错边越小越好，错边不能超过壁厚的10%。否则，将影响对接质量。\n6、加热：对接温度一般在210-230℃之间为宜，加热板加热时间冬夏有别，以两端面熔融长度为1-2mm为佳。\n7、切换：将加热板拿开，迅速让两热融端面相粘并加压，为保证熔融对接质量，切换周期越短越好。\n8、熔融对接：是焊接的关键，对接过程应始终处于熔融压力下进行，卷边宽度以2-4mm为宜。\n9、冷却：保持对接压力不变，让接口缓慢冷却，冷却时间长短以手摸卷边生硬，感觉不到热为准。\n10、对接完成：冷却好后松开卡瓦，移开对接机，重新准备下一接口连接。","个",{"v":15,"d":"15.00"},{"v":50,"d":"50.00"},{"v":750,"d":"750.00"},{"v":51.5,"d":"51.50"}]
[38,"镀锌扁钢-50×5接地干线","[项目特征]\n1.设备房机电安装，材料甲方提供\n[工程内容]\n1.开槽、安装、布线、成品保护","m",{"v":200,"d":"200.00"},{"v":2,"d":"2.00"},{"v":400,"d":"400.00"},2.06]
[39,"镀锌扁钢-40×4接地支线","[项目特征]\n1.设备房机电安装，材料甲方提供\n[工程内容]\n1.开槽、安装、布线、成品保护","m",{"v":200,"d":"200.00"},{"v":2,"d":"2.00"},{"v":400,"d":"400.00"},2.06]
[40,"钢套管DN200（壁厚4.5mm）","[项目特征]\n1.管道安装，材料甲方提供\n[工程内容]\n1、材料搬运；\n2、材料准备：将管道或管件置于平坦位置，放于对接机上，留足10-20mm的切削余量。\n3、夹紧：根据所焊制的管材、管件选择合适的卡瓦夹具，夹紧管材，为切削做好准备。\n4、切削：切削所焊管段、管件端面杂质和氧化层，保证两对接端面平整、光洁、无杂质。\n5、对中：两焊管段端面要完全对中，错边越小越好，错边不能超过壁厚的10%。否则，将影响对接质量。\n6、加热：对接温度一般在210-230℃之间为宜，加热板加热时间冬夏有别，以两端面熔融长度为1-2mm为佳。\n7、切换：将加热板拿开，迅速让两热融端面相粘并加压，为保证熔融对接质量，切换周期越短越好。\n8、熔融对接：是焊接的关键，对接过程应始终处于熔融压力下进行，卷边宽度以2-4mm为宜。\n9、冷却：保持对接压力不变，让接口缓慢冷却，冷却时间长短以手摸卷边生硬，感觉不到热为准。\n10、对接完成：冷却好后松开卡瓦，移开对接机，重新准备下一接口连接。","m",{"v":100,"d":"100.00"},{"v":20,"d":"20.00"},{"v":2000,"d":"2000.00"},{"v":20.6,"d":"20.60"}]
[41,"C20砼基础","[项目特征]\n1.截面尺寸:综合考虑\n2.混凝土强度等级:综合\n3.混凝土拌和料要求:满足设计及规范要求\n4.混凝土种类:商品混凝土\n5.表面凿毛或收光或收光\n6.钢筋支架钢丝网或单层钢板网隔开\n7.天棚为清水顶棚\n[工程内容]\n1.混凝土制作、运输、浇筑、振捣、养护、打磨平整、切缝、刻痕\n2.表面凿毛或收光\n3.商品砼采用甲供，其余材料及机械均由分包人提供","m3",155.65,{"v":65,"d":"65.00"},10117.25,66.95]
[42,"C20现浇砼基础（含跌水）","[项目特征]\n1.截面尺寸:综合考虑\n2.混凝土强度等级:综合\n3.混凝土拌和料要求:满足设计及规范要求\n4.混凝土种类:商品混凝土\n5.表面凿毛或收光或收光\n6.钢筋支架钢丝网或单层钢板网隔开\n7.天棚为清水顶棚\n[工程内容]\n1.混凝土制作、运输、浇筑、振捣、养护、打磨平整、切缝、刻痕\n2.表面凿毛或收光\n3.商品砼采用甲供，其余材料及机械均由分包人提供","m3",2.35,{"v":65,"d":"65.00"},152.75,66.95]
[43,"地力培肥","1、配合机械地力培肥；\n2、分配平衡施肥比例。","t",125.73,{"v":300,"d":"300.00"},{"v":37719,"d":"37719.00"},{"v":309,"d":"309.00"}]
[44,"M10砂浆抹面（立面）","1.现场清理\n2.基层清扫、洗刷、配、拌、运砂浆、抹平、养护\n3.清理现场","m2",{"v":4,"d":"4.00"},{"v":12,"d":"12.00"},{"v":48,"d":"48.00"},12.36]
[45,"C25钢筋混凝土底板","[项目特征]\n1.截面尺寸:综合考虑\n2.混凝土强度等级:综合\n3.混凝土拌和料要求:满足设计及规范要求\n4.混凝土种类:商品混凝土\n5.表面凿毛或收光或收光\n6.钢筋支架钢丝网或单层钢板网隔开\n7.天棚为清水顶棚\n[工程内容]\n1.混凝土制作、运输、浇筑、振捣、养护、打磨平整、切缝、刻痕\n2.表面凿毛或收光\n3.商品砼采用甲供，其余材料及机械均由分包人提供","m3",{"v":37,"d":"37.00"},{"v":95,"d":"95.00"},{"v":3515,"d":"3515.00"},97.85]
[46,"钢筋制作与安装","[项目特征]\n1.钢筋种类、规格:型号:综合，详设计\n2.连接方式:综合，详设计\n3.钢筋连接接头:不区分绑扎、焊接及机械连接，电渣压力焊与机械连接的接头费用综合考虑在包干费中\n4.异形构件：异形、弧形构件钢筋制作及安装，不另列\n5.适用范围：主体结构钢筋、所有二次构件及砌体加筋等\n6.钢筋主材为甲供，其余套筒、焊条、成品马櫈、预埋铁件、砌体加固及绑扎丝等所有辅材及工具由分包人提供\n[工程内容]\n1.钢筋(网、笼)制作、运输\n2.钢筋(网、笼)安装","t",{"v":12.055,"d":"12.06"},{"v":1025,"d":"1025.00"},12356.38,1055.75]
[47,"预制C25钢筋砼盖板","1、模板制作、安装、拆除、安装；\n2、混凝土运输、浇筑（砼浇注前、后的系列工作，包括砼施工的施工前准备，编制砼用量计划、清洁、修复、浇注、泵送配合、根据进度留设施工缝、施工缝处理剔打、养护、砼等垃圾处理、砼浇注质量问题处理等除砼搅拌外的砼施工的全部工序内容）；\n3、安全设施搭拆、个人安全措施、自备辅材、自备所有施工机械设备及工器具；\n4.养护；\n5.现场安全防护及管理。","m3",3.44,{"v":120,"d":"120.00"},{"v":412.8,"d":"412.80"},{"v":123.6,"d":"123.60"}]
[48,"M7.5浆砌砖护栏","1、M7.5砌筑工作；\n2、材料搬运、拌、运砂浆；\n3、搭、拆脚手架；\n4、砌筑、勾缝、养护；\n5、沉降缝胶泥制作与填抹；\n6、排水孔下的胶泥铺设与孔口填石；\n7、安全措施。","m3",{"v":28.3,"d":"28.30"},288.75,8171.63,297.41]
[49,"现浇C20砼","[项目特征]\n1.截面尺寸:综合考虑\n2.混凝土强度等级:综合\n3.混凝土拌和料要求:满足设计及规范要求\n4.混凝土种类:商品混凝土\n5.表面凿毛或收光或收光\n6.钢筋支架钢丝网或单层钢板网隔开\n7.天棚为清水顶棚\n[工程内容]\n1.混凝土制作、运输、浇筑、振捣、养护、打磨平整、切缝、刻痕\n2.表面凿毛或收光\n3.商品砼采用甲供，其余材料及机械均由分包人提供","m3",{"v":106.914,"d":"106.91"},{"v":65,"d":"65.00"},6949.41,66.95]
[50,"混凝土拆除","1、拆除、装车、人工配合转用","m3",{"v":30,"d":"30.00"},{"v":65,"d":"65.00"},{"v":1950,"d":"1950.00"},66.95]
[51,"排泥阀","[项目特征]\n1.管道安装，材料甲方提供\n[工程内容]\n1、材料搬运；\n2、材料准备：将管道或管件置于平坦位置，放于对接机上，留足10-20mm的切削余量。\n3、夹紧：根据所焊制的管材、管件选择合适的卡瓦夹具，夹紧管材，为切削做好准备。\n4、切削：切削所焊管段、管件端面杂质和氧化层，保证两对接端面平整、光洁、无杂质。\n5、对中：两焊管段端面要完全对中，错边越小越好，错边不能超过壁厚的10%。否则，将影响对接质量。\n6、加热：对接温度一般在210-230℃之间为宜，加热板加热时间冬夏有别，以两端面熔融长度为1-2mm为佳。\n7、切换：将加热板拿开，迅速让两热融端面相粘并加压，为保证熔融对接质量，切换周期越短越好。\n8、熔融对接：是焊接的关键，对接过程应始终处于熔融压力下进行，卷边宽度以2-4mm为宜。\n9、冷却：保持对接压力不变，让接口缓慢冷却，冷却时间长短以手摸卷边生硬，感觉不到热为准。\n10、对接完成：冷却好后松开卡瓦，移开对接机，重新准备下一接口连接。","个",{"v":16,"d":"16.00"},{"v":50,"d":"50.00"},{"v":800,"d":"800.00"},{"v":51.5,"d":"51.50"}]
[52,"C20混凝土垫层","1.模板制作、安装、拆除\n2.混凝土运输、浇筑（砼浇注前、后的系列工作，包括砼施工的施工前准备，编制砼用量计划、清洁、修复、浇注、泵送配合、根据进度留设施工缝、施工缝处理剔打、养护、砼等垃圾处理、砼浇注质量问题处理等除砼搅拌外的砼施工的全部工序内容）\n3.安全设施搭拆、个人安全措施、自备辅材、自备所有施工机械设备及工器具                                       \n4.养护：","m3",{"v":22.7,"d":"22.70"},{"v":65,"d":"65.00"},{"v":1475.5,"d":"1475.50"},66.95]
[53,"C20砼压顶","1.模板制作、安装、拆除\n2.混凝土运输、浇筑（砼浇注前、后的系列工作，包括砼施工的施工前准备，编制砼用量计划、清洁、修复、浇注、泵送配合、根据进度留设施工缝、施工缝处理剔打、养护、砼等垃圾处理、砼浇注质量问题处理等除砼搅拌外的砼施工的全部工序内容）\n3.安全设施搭拆、个人安全措施、自备辅材、自备所有施工机械设备及工器具                                       \n4.养护：","m3",{"v":45,"d":"45.00"},{"v":65,"d":"65.00"},{"v":2925,"d":"2925.00"},66.95]
[54,"PEφ160放水管","[项目特征]\n1.管道安装，材料甲方提供\n[工程内容]\n1、材料搬运；\n2、材料准备：将管道或管件置于平坦位置，放于对接机上，留足10-20mm的切削余量。\n3、夹紧：根据所焊制的管材、管件选择合适的卡瓦夹具，夹紧管材，为切削做好准备。\n4、切削：切削所焊管段、管件端面杂质和氧化层，保证两对接端面平整、光洁、无杂质。\n5、对中：两焊管段端面要完全对中，错边越小越好，错边不能超过壁厚的10%。否则，将影响对接质量。\n6、加热：对接温度一般在210-230℃之间为宜，加热板加热时间冬夏有别，以两端面熔融长度为1-2mm为佳。\n7、切换：将加热板拿开，迅速让两热融端面相粘并加压，为保证熔融对接质量，切换周期越短越好。\n8、熔融对接：是焊接的关键，对接过程应始终处于熔融压力下进行，卷边宽度以2-4mm为宜。\n9、冷却：保持对接压力不变，让接口缓慢冷却，冷却时间长短以手摸卷边生硬，感觉不到热为准。\n10、对接完成：冷却好后松开卡瓦，移开对接机，重新准备下一接口连接。","m",49.39,{"v":45,"d":"45.00"},2222.55,46.35]
[55,"20cm现浇C20砼渠道","1.模板制作、安装、拆除\n2.混凝土运输、浇筑（砼浇注前、后的系列工作，包括砼施工的施工前准备，编制砼用量计划、清洁、修复、浇注、泵送配合、根据进度留设施工缝、施工缝处理剔打、养护、砼等垃圾处理、砼浇注质量问题处理等除砼搅拌外的砼施工的全部工序内容）\n3.安全设施搭拆、个人安全措施、自备辅材、自备所有施工机械设备及工器具                                       \n4.养护：","m3",{"v":32.4,"d":"32.40"},{"v":65,"d":"65.00"},{"v":2106,"d":"2106.00"},66.95]
[56,"扁钢-25×3×400镀锌避雷带支持卡子","[项目特征]\n1.设备房机电安装，材料甲方提供\n[工程内容]\n1.开槽、安装、布线、成品保护","套",{"v":32,"d":"32.00"},{"v":2,"d":"2.00"},{"v":64,"d":"64.00"},2.06]
[57,"现浇C20砼配套排水沟、沉沙池","1.模板制作、安装、拆除\n2.混凝土运输、浇筑（砼浇注前、后的系列工作，包括砼施工的施工前准备，编制砼用量计划、清洁、修复、浇注、泵送配合、根据进度留设施工缝、施工缝处理剔打、养护、砼等垃圾处理、砼浇注质量问题处理等除砼搅拌外的砼施工的全部工序内容）\n3.安全设施搭拆、个人安全措施、自备辅材、自备所有施工机械设备及工器具                                       \n4.养护：","m3",14.78,{"v":65,"d":"65.00"},{"v":960.7,"d":"960.70"},66.95]
[58,"C25砼预制盖板","1、模板制作、安装、拆除、安装；\n2、混凝土运输、浇筑（砼浇注前、后的系列工作，包括砼施工的施工前准备，编制砼用量计划、清洁、修复、浇注、泵送配合、根据进度留设施工缝、施工缝处理剔打、养护、砼等垃圾处理、砼浇注质量问题处理等除砼搅拌外的砼施工的全部工序内容）；\n3、安全设施搭拆、个人安全措施、自备辅材、自备所有施工机械设备及工器具；\n4.养护；\n5.现场安全防护及管理。","m3",0.58,{"v":120,"d":"120.00"},{"v":69.6,"d":"69.60"},{"v":123.6,"d":"123.60"}]
[59,"C15混凝土管垫层","1.模板制作、安装、拆除\n2.混凝土运输、浇筑（砼浇注前、后的系列工作，包括砼施工的施工前准备，编制砼用量计划、清洁、修复、浇注、泵送配合、根据进度留设施工缝、施工缝处理剔打、养护、砼等垃圾处理、砼浇注质量问题处理等除砼搅拌外的砼施工的全部工序内容）\n3.安全设施搭拆、个人安全措施、自备辅材、自备所有施工机械设备及工器具                                       \n4.养护：","m3",17.83,{"v":65,"d":"65.00"},1158.95,66.95]
[60,"现浇C20砼溢洪道","1.模板制作、安装、拆除\n2.混凝土运输、浇筑（砼浇注前、后的系列工作，包括砼施工的施工前准备，编制砼用量计划、清洁、修复、浇注、泵送配合、根据进度留设施工缝、施工缝处理剔打、养护、砼等垃圾处理、砼浇注质量问题处理等除砼搅拌外的砼施工的全部工序内容）\n3.安全设施搭拆、个人安全措施、自备辅材、自备所有施工机械设备及工器具                                       \n4.养护：","m3",31.21,{"v":65,"d":"65.00"},2028.65,66.95]
[61,"墩","[项目特征]\n1.截面尺寸:综合考虑\n2.混凝土强度等级:综合\n3.混凝土拌和料要求:满足设计及规范要求\n4.混凝土种类:商品混凝土\n5.表面凿毛或收光或收光\n6.钢筋支架钢丝网或单层钢板网隔开\n7.天棚为清水顶棚\n[工程内容]\n1.混凝土制作、运输、浇筑、振捣、养护、打磨平整、切缝、刻痕\n2.表面凿毛或收光\n3.商品砼采用甲供，其余材料及机械均由分包人提供","m3",{"v":8.8,"d":"8.80"},{"v":150,"d":"150.00"},{"v":1320,"d":"1320.00"},{"v":154.5,"d":"154.50"}]
[62,"现浇C20砼消力池","[项目特征]\n1.截面尺寸:综合考虑\n2.混凝土强度等级:综合\n3.混凝土拌和料要求:满足设计及规范要求\n4.混凝土种类:商品混凝土\n5.表面凿毛或收光或收光\n6.钢筋支架钢丝网或单层钢板网隔开\n7.天棚为清水顶棚\n[工程内容]\n1.混凝土制作、运输、浇筑、振捣、养护、打磨平整、切缝、刻痕\n2.表面凿毛或收光\n3.商品砼采用甲供，其余材料及机械均由分包人提供","m3",13.64,{"v":65,"d":"65.00"},{"v":886.6,"d":"886.60"},66.95]
[63,"现浇C20砼梯步","[项目特征]\n1.截面尺寸:综合考虑\n2.混凝土强度等级:综合\n3.混凝土拌和料要求:满足设计及规范要求\n4.混凝土种类:商品混凝土\n5.表面凿毛或收光或收光\n6.钢筋支架钢丝网或单层钢板网隔开\n7.天棚为清水顶棚\n[工程内容]\n1.混凝土制作、运输、浇筑、振捣、养护、打磨平整、切缝、刻痕\n2.表面凿毛或收光\n3.商品砼采用甲供，其余材料及机械均由分包人提供","m3",6.15,{"v":65,"d":"65.00"},399.75,66.95]
[64,"C25砼底板","[项目特征]\n1.截面尺寸:综合考虑\n2.混凝土强度等级:综合\n3.混凝土拌和料要求:满足设计及规范要求\n4.混凝土种类:商品混凝土\n5.表面凿毛或收光或收光\n6.钢筋支架钢丝网或单层钢板网隔开\n7.天棚为清水顶棚\n[工程内容]\n1.混凝土制作、运输、浇筑、振捣、养护、打磨平整、切缝、刻痕\n2.表面凿毛或收光\n3.商品砼采用甲供，其余材料及机械均由分包人提供","m3",{"v":11,"d":"11.00"},{"v":65,"d":"65.00"},{"v":715,"d":"715.00"},66.95]
[65,"DN800钢筋砼管","1.基础开挖：1）挂线；2）挖土；3）回填或将挖出的土筑成挡水埝；4）将沟槽断面修理到设计要求；5）清理现场等。\n2.基础砌筑：石质：1）挂线；2）打眼、爆破、人工或机械清理；3）人工将沟槽断面修理到设计要求\n3.涵身：1）选、修、洗石料；2）搭、拆脚手架、踏步或井字架；3）配、拌、运砂浆；4）砌筑；5）勾缝；6）养护。\n4.涵管：1）构件修整；2）铺垫油毛毡支座；3）埋设及拆除地笼；4）起重机纵移过墩；5）构件吊装。\n5.钢筋：1）搭、拆脚手架及轻型上下架、安全爬梯；2）定型钢模安装、拆除、修理、涂脱模剂、堆放；3）液压爬模拼拆及安装、提升、拆除、修理、涂脱模剂、堆放；4）钢筋除锈、制作、电焊、绑扎及骨架吊装入模；6）混凝土浇筑、捣固及养护。","m",{"v":24,"d":"24.00"},{"v":40,"d":"40.00"},{"v":960,"d":"960.00"},{"v":41.2,"d":"41.20"}]
[66,"不锈钢防护门","1.钢管柱：切割、焊接、钻孔、打桩机打入钢管柱，挖洞，浇筑柱脚混凝土；\n2.立柱：打桩机打入柱；\n3.护栏：安装撑架、固定螺栓及连接螺栓\n4.清理现场","扇",{"v":5,"d":"5.00"},{"v":100,"d":"100.00"},{"v":500,"d":"500.00"},{"v":103,"d":"103.00"}]
[67,"防潮灯1x40W","[项目特征]\n1.设备房机电安装，材料甲方提供\n[工程内容]\n1.开槽、安装、布线、成品保护","盏",{"v":8,"d":"8.00"},{"v":10,"d":"10.00"},{"v":80,"d":"80.00"},{"v":10.3,"d":"10.30"}]
[68,"C30现浇砼梯步","[项目特征]\n1.截面尺寸:综合考虑\n2.混凝土强度等级:综合\n3.混凝土拌和料要求:满足设计及规范要求\n4.混凝土种类:商品混凝土\n5.表面凿毛或收光或收光\n6.钢筋支架钢丝网或单层钢板网隔开\n7.天棚为清水顶棚\n[工程内容]\n1.混凝土制作、运输、浇筑、振捣、养护、打磨平整、切缝、刻痕\n2.表面凿毛或收光\n3.商品砼采用甲供，其余材料及机械均由分包人提供","m3",8.44,{"v":65,"d":"65.00"},{"v":548.6,"d":"548.60"},66.95]
[69,"C20预制砼撑杆","[项目特征]\n1.截面尺寸:综合考虑\n2.混凝土强度等级:综合\n3.混凝土拌和料要求:满足设计及规范要求\n4.混凝土种类:商品混凝土\n5.表面凿毛或收光或收光\n6.钢筋支架钢丝网或单层钢板网隔开\n7.天棚为清水顶棚\n[工程内容]\n1.混凝土制作、运输、浇筑、振捣、养护、打磨平整、切缝、刻痕\n2.表面凿毛或收光\n3.商品砼采用甲供，其余材料及机械均由分包人提供","m3",10.55,{"v":120,"d":"120.00"},{"v":1266,"d":"1266.00"},{"v":123.6,"d":"123.60"}]
[70,"放水闸阀","[项目特征]\n1.管道安装，材料甲方提供\n[工程内容]\n1、材料搬运；\n2、材料准备：将管道或管件置于平坦位置，放于对接机上，留足10-20mm的切削余量。\n3、夹紧：根据所焊制的管材、管件选择合适的卡瓦夹具，夹紧管材，为切削做好准备。\n4、切削：切削所焊管段、管件端面杂质和氧化层，保证两对接端面平整、光洁、无杂质。\n5、对中：两焊管段端面要完全对中，错边越小越好，错边不能超过壁厚的10%。否则，将影响对接质量。\n6、加热：对接温度一般在210-230℃之间为宜，加热板加热时间冬夏有别，以两端面熔融长度为1-2mm为佳。\n7、切换：将加热板拿开，迅速让两热融端面相粘并加压，为保证熔融对接质量，切换周期越短越好。\n8、熔融对接：是焊接的关键，对接过程应始终处于熔融压力下进行，卷边宽度以2-4mm为宜。\n9、冷却：保持对接压力不变，让接口缓慢冷却，冷却时间长短以手摸卷边生硬，感觉不到热为准。\n10、对接完成：冷却好后松开卡瓦，移开对接机，重新准备下一接口连接。","个",{"v":6,"d":"6.00"},{"v":50,"d":"50.00"},{"v":300,"d":"300.00"},{"v":51.5,"d":"51.50"}]
[71,"双联单控开关","[项目特征]\n1.设备房机电安装，材料甲方提供\n[工程内容]\n1.开槽、安装、布线、成品保护","个",{"v":4,"d":"4.00"},{"v":5,"d":"5.00"},{"v":20,"d":"20.00"},5.15]
[72,"现浇C20取水平台","[项目特征]\n1.截面尺寸:综合考虑\n2.混凝土强度等级:综合\n3.混凝土拌和料要求:满足设计及规范要求\n4.混凝土种类:商品混凝土\n5.表面凿毛或收光或收光\n6.钢筋支架钢丝网或单层钢板网隔开\n7.天棚为清水顶棚\n[工程内容]\n1.混凝土制作、运输、浇筑、振捣、养护、打磨平整、切缝、刻痕\n2.表面凿毛或收光\n3.商品砼采用甲供，其余材料及机械均由分包人提供","m3",1.39,{"v":65,"d":"65.00"},90.35,66.95]
[73,"零星用工","1.辅助机械；\n2.现场清理；\n3.零星项目。","项",{"v":1,"d":"1.00"},81180.12,81180.12,83615.52]
[null,"合计",{"$nulls":4},{"$f":"SUM(G5:G81)","v":3594849.21}]
["注：投标单价不能超过控制单价，所有报价为含税价，税率3%。"]
[]
[]
[{"$nulls":6},{"$f":"I84-I84/1.03*0.03","v":{"v":0,"d":"0.00"}}]

{"sheet":"材料清单表","index":1,"n_rows":29,"n_cols":14,"rows_kept":29,"hidden":true,"merged":[[1,0,1,6],[2,0,2,6],[3,0,3,6],[26,0,26,4]]}
[]
["2024年隆昌市财政转移支付高标准农田新建项目-白鹤林村"]
["材料清单表  单位：元"]
["项目名称：2024年隆昌市财政转移支付高标准农田新建项目-白鹤林村"]
["序号","项目名称","计量单位","工程数量\n（预估）","不含税\n单价","合价","备注","单价\n(含税）","合计"]
[1,"闸阀、综合","个",{"v":326,"d":"326.00"},{"v":500,"d":"500.00"},{"$f":"ROUND(D6*E6,2)","v":{"v":163000,"d":"163000.00"}},null,{"$f":"ROUND(E6*1.13,2)","v":{"v":565,"d":"565.00"}},{"$f":"ROUND(D6*H6,2)","v":{"v":184190,"d":"184190.00"}}]
[2,"DN160（1.0MPa）PE100管道","m",12352.78,{"v":88,"d":"88.00"},1087044.64,null,99.44,1228360.44]
[3,"DN200（1.0MPa）PE100管道","m",12272.27,{"v":115,"d":"115.00"},1411311.05,null,129.95,1594781.49]
[4,"复合式高速进排气阀 1.0MPa DN250","个",{"v":62,"d":"62.00"},{"v":384,"d":"384.00"},{"v":23808,"d":"23808.00"},null,433.92,26903.04]
[5,"给水栓","个",{"v":316,"d":"316.00"},{"v":184,"d":"184.00"},{"v":58144,"d":"58144.00"},null,207.92,65702.72]
[6,"排泥阀","个",{"v":62,"d":"62.00"},178.25,{"v":11051.5,"d":"11051.50"},null,201.42,12488.04,null,"混凝土",4071.522,"碎石",2850.0654]
[7,"电机","台",{"v":4,"d":"4.00"},{"v":12200,"d":"12200.00"},{"v":48800,"d":"48800.00"},null,{"v":13786,"d":"13786.00"},{"v":55144,"d":"55144.00"},{"$nulls":3},"砂",2035.761]
[8,"动力配电箱","只",{"v":4,"d":"4.00"},{"v":3000,"d":"3000.00"},{"v":12000,"d":"12000.00"},null,{"v":3390,"d":"3390.00"},{"v":13560,"d":"13560.00"},{"$nulls":3},"水泥",814.3044]
[9,"箱式变压器（10kva），含安装材料","台",{"v":4,"d":"4.00"},{"v":18500,"d":"18500.00"},{"v":74000,"d":"74000.00"},null,{"v":20905,"d":"20905.00"},{"v":83620,"d":"83620.00"},{"$nulls":3},"砖",2508.21072]
[10,"量水尺","套",{"v":10,"d":"10.00"},{"v":100,"d":"100.00"},{"v":1000,"d":"1000.00"},null,{"v":113,"d":"113.00"},{"v":1130,"d":"1130.00"},{"$nulls":3},"碎石",1629.917]
[11,"钢筋混凝土管","米",{"v":245,"d":"245.00"},{"v":150,"d":"150.00"},{"v":36750,"d":"36750.00"},null,{"v":169.5,"d":"169.50"},{"v":41527.5,"d":"41527.50"}]
[12,"卵石 40mm","m3",{"v":4250,"d":"4250.00"},{"v":120,"d":"120.00"},{"v":510000,"d":"510000.00"},null,{"v":135.6,"d":"135.60"},{"v":576300,"d":"576300.00"}]
[13,"特细砂","m3",{"v":4215,"d":"4215.00"},{"v":200,"d":"200.00"},{"v":843000,"d":"843000.00"},null,{"v":226,"d":"226.00"},{"v":952590,"d":"952590.00"}]
[14,"肥料","t",146.63,{"v":580,"d":"580.00"},{"v":85045.4,"d":"85045.40"},null,{"v":655.4,"d":"655.40"},{"v":96101.3,"d":"96101.30"},null,null,"钢筋制作与安装",null,{"$f":"SUMIF([1]工程项目人工、材料、机械单价分析表!$C$5:$C$2476,L19,[1]工程项目人工、材料、机械单价分析表!$E$5:$E$2476)","v":77.665}]
[15,"不锈钢防护拦","m",{"v":269,"d":"269.00"},{"v":165,"d":"165.00"},{"v":44385,"d":"44385.00"},null,186.45,50155.05]
[16,"砖","千匹",{"v":3200,"d":"3200.00"},{"v":370,"d":"370.00"},{"v":1184000,"d":"1184000.00"},null,{"v":418.1,"d":"418.10"},{"v":1337920,"d":"1337920.00"}]
[17,"钢筋、综合","t",{"v":95,"d":"95.00"},{"v":3565,"d":"3565.00"},{"v":338675,"d":"338675.00"},null,4028.45,382702.75]
[18,"管线、综合","项",{"v":1,"d":"1.00"},{"v":45000,"d":"45000.00"},{"v":45000,"d":"45000.00"},null,{"v":50850,"d":"50850.00"},{"v":50850,"d":"50850.00"}]
[19,"碎石","m3",{"v":3500,"d":"3500.00"},{"v":90,"d":"90.00"},{"v":315000,"d":"315000.00"},null,{"v":101.7,"d":"101.70"},{"v":355950,"d":"355950.00"}]
[20,"水泥","t",{"v":1950,"d":"1950.00"},{"v":340,"d":"340.00"},{"v":663000,"d":"663000.00"},null,{"v":384.2,"d":"384.20"},{"v":749190,"d":"749190.00"}]
[21,"零星材料","项",{"v":1,"d":"1.00"},243926.69,243926.69,null,275637.16,275637.16]
["合计",{"$nulls":4},{"$f":"SUM(F6:F26)","v":7198941.28},null,null,{"$f":"SUM(I6:I26)","v":8134803.49},{"$f":"K27-F27","v":{"v":-0.00200000032782555,"d":"(0.00)"}},{"$f":"[1]成本分析表汇总表!F8","v":{"v":7198941.278,"d":"7198941.28"}}]
[{"$nulls":5},{"$f":"[1]工程项目人工、材料、机械单价分析表!I937","v":{"v":7198941.278,"d":"7198941.28"}},null,null,{"$f":"[1]工程项目人工、材料、机械单价分析表!I940","v":{"v":8134803.488,"d":"8134803.49"}}]
[{"$nulls":5},{"$f":"F28-F27","v":{"v":-0.00200000032782555,"d":"(0.00)"}},null,null,{"$f":"I28-I27","v":{"v":-0.00200000032782555,"d":"(0.00)"}}]